fUSD/lending_fUSD_20241227
["ID","MTS","AMOUNT","RATE_DAILY","PERIOD"]
[346787124,1735287046134,-612.88,0.00012932,2]
[346787125,1735287046144,-520.66,0.00012932,2]
[346787126,1735287046153,-500.0,0.00012932,2]
[346787127,1735287046163,-500.0,0.00012932,2]
[346787128,1735287046172,-500.0,0.00012932,2]
[346787129,1735287046182,-500.0,0.00012932,2]
[346787130,1735287046197,-500.0,0.00012932,2]
[346787131,1735287046206,-500.0,0.00012932,2]
[346787133,1735287046216,-500.0,0.00012932,2]
[346787135,1735287046226,-500.0,0.00012932,2]
[346787136,1735287046237,-500.0,0.00012932,2]
[346787137,1735287046248,-563.18,0.00012932,2]
[346787138,1735287046258,-500.0,0.00012932,2]
[346787139,1735287046269,-500.0,0.00012932,2]
[346787140,1735287046280,-500.0,0.00012932,2]
[346787141,1735287046294,-500.0,0.00012932,2]
[346787142,1735287046306,-623.53,0.00012932,2]
[346787143,1735287046317,-528.22,0.00012932,2]
[346787144,1735287046329,-500.0,0.00012932,2]
[346787145,1735287046341,-500.0,0.00012932,2]
[346787146,1735287046351,-500.0,0.00012932,2]
[346787147,1735287046360,-500.0,0.00012932,2]
[346787148,1735287046370,-503.43,0.00012932,2]
[346787149,1735287046380,-500.0,0.00012932,2]
[346787150,1735287046389,-500.0,0.00012932,2]
[346787151,1735287046399,-500.0,0.00012932,2]
[346787152,1735287046409,-500.0,0.00012932,2]
[346787153,1735287046418,-500.0,0.00012932,2]
[346787154,1735287046428,-500.0,0.00012932,2]
[346787155,1735287046438,-500.0,0.00012932,2]
[346787156,1735287046448,-500.0,0.00012932,2]
[346787157,1735287046458,-500.0,0.00012932,2]
[346787158,1735287046468,-500.0,0.00012932,2]
[346787159,1735287046477,-500.0,0.00012932,2]
[346787160,1735287046488,-500.0,0.00012932,2]
[346787161,1735287046497,-500.0,0.00012932,2]
[346787163,1735287046507,-500.0,0.00012932,2]
[346787165,1735287046517,-500.0,0.00012932,2]
[346787167,1735287046526,-500.0,0.00012932,2]
[346787169,1735287046536,-500.0,0.00012932,2]
[346787171,1735287046547,-500.0,0.00012932,2]
[346787173,1735287046559,-500.0,0.00012932,2]
[346787175,1735287046570,-500.0,0.00012932,2]
[346787177,1735287046586,-500.0,0.00012932,2]
[346787179,1735287046597,-500.0,0.00012932,2]
[346787181,1735287046608,-500.0,0.00012932,2]
[346787183,1735287046619,-500.0,0.00012932,2]
[346787185,1735287046629,-631.48,0.00012932,2]
[346787187,1735287046639,-506.10517191,0.00012932,2]
[346787189,1735287046649,-500.0,0.00012932,2]
[346787191,1735287046659,-698.87,0.00012932,2]
[346787193,1735287046669,-634.46,0.00012932,2]
[346787195,1735287046679,-743.39,0.00012932,2]
[346787197,1735287046690,-500.0,0.00012932,2]
[346787199,1735287046700,-750.88,0.00012932,2]
[346787201,1735287046711,-955.48,0.00012932,2]
[346787203,1735287046722,-500.0,0.00012932,2]
[346787205,1735287046733,-500.0,0.00012932,2]
[346787207,1735287046744,-697.13,0.00012932,2]
[346787209,1735287046755,-500.0,0.00012932,2]
[346787211,1735287046766,-1120.57,0.00012932,2]
[346787213,1735287046776,-191.12,0.00012932,2]
[346787215,1735287046787,-500.0,0.00012932,2]
[346787217,1735287046799,-500.0,0.00012932,2]
[346787219,1735287046810,-1293.91,0.00012932,2]
[346787221,1735287046820,-500.0,0.00012932,2]
[346787223,1735287046833,-500.0,0.00012932,2]
[346787225,1735287046843,-537.50879461,0.00012932,2]
[346787227,1735287046854,-500.0,0.00012932,2]
[346787229,1735287046865,-500.0,0.00012932,2]
[346787231,1735287046874,-154.88,0.00012932,2]
[346787233,1735287046884,-500.0,0.00012932,2]
[346787235,1735287046894,-653.56,0.00012932,2]
[346787237,1735287046904,-500.0,0.00012932,2]
[346787239,1735287046913,-661.66,0.00012932,2]
[346787241,1735287046923,-500.0,0.00012932,2]
[346787243,1735287046933,-914.36,0.00012932,2]
[346787245,1735287046943,-1311.26,0.00012932,2]
[346787247,1735287046953,-1034.2,0.00012932,2]
[346787249,1735287046963,-697.93,0.00012932,2]
[346787251,1735287046973,-611.16,0.00012932,2]
[346787253,1735287046984,-1112.09,0.00012932,2]
[346787255,1735287046994,-500.0,0.00012932,2]
[346787257,1735287047004,-500.0,0.00012932,2]
[346787259,1735287047015,-1062.89,0.00012932,2]
[346787262,1735287047025,-500.0,0.00012932,2]
[346787264,1735287047035,-703.57,0.00012932,2]
[346787266,1735287047045,-500.0,0.00012932,2]
[346787268,1735287047054,-500.0,0.00012932,2]
[346787269,1735287047064,-500.0,0.00012932,2]
[346787272,1735287047074,-500.0,0.00012932,2]
[346787274,1735287047090,-693.6,0.00012932,2]
[346787276,1735287047100,-500.0,0.00012932,2]
[346787278,1735287047110,-1004.51,0.00012932,2]
[346787280,1735287047120,-500.0,0.00012932,2]
[346787282,1735287047130,-500.0,0.00012932,2]
[346787284,1735287047139,-643.97,0.00012932,2]
[346787286,1735287047149,-500.0,0.00012932,2]
[346787288,1735287047159,-500.0,0.00012932,2]
[346787290,1735287047169,-500.0,0.00012932,2]
[346787292,1735287047179,-625.13,0.00012932,2]
[346787294,1735287047193,-500.0,0.00012932,2]
[346787296,1735287047205,-500.0,0.00012932,2]
[346787298,1735287047217,-500.0,0.00012932,2]
[346787300,1735287047229,-500.0,0.00012932,2]
[346787302,1735287047240,-618.74,0.00012932,2]
[346787304,1735287047252,-500.0,0.00012932,2]
[346787306,1735287047263,-500.0,0.00012932,2]
[346787308,1735287047276,-725.89,0.00012932,2]
[346787310,1735287047288,-500.0,0.00012932,2]
[346787312,1735287047301,-500.0,0.00012932,2]
[346787314,1735287047313,-500.0,0.00012932,2]
[346787315,1735287047325,-804.82,0.00012932,2]
[346787316,1735287047343,-312.54292727,0.00012932,2]
[346787317,1735287047354,-500.0,0.00012932,2]
[346787318,1735287047367,-500.0,0.00012932,2]
[346787319,1735287047378,-500.0,0.00012932,2]
[346787320,1735287047389,-500.0,0.00012932,2]
[346787321,1735287047399,-940.37,0.00012932,2]
[346787322,1735287047410,-500.0,0.00012932,2]
[346787323,1735287047421,-893.86,0.00012932,2]
[346787324,1735287047432,-500.0,0.00012932,2]
[346787325,1735287047443,-500.0,0.00012932,2]
[346787326,1735287047455,-609.41,0.00012932,2]
[346787327,1735287047466,-546.76,0.00012932,2]
[346787328,1735287047476,-500.0,0.00012932,2]
[346787329,1735287047488,-500.0,0.00012932,2]
[346787330,1735287047498,-500.0,0.00012932,2]
[346787331,1735287047509,-254.76531366,0.00012932,2]
[346787332,1735287047520,-805.05,0.00012932,2]
[346787333,1735287047529,-500.0,0.00012932,2]
[346787334,1735287047539,-500.0,0.00012932,2]
[346787335,1735287047549,-500.0,0.00012932,2]
[346787336,1735287047560,-500.0,0.00012932,2]
[346787337,1735287047570,-500.0,0.00012932,2]
[346787338,1735287047582,-500.0,0.00012932,2]
[346787339,1735287047593,-749.11,0.00012932,2]
[346787340,1735287047603,-500.0,0.00012932,2]
[346787341,1735287047613,-505.66,0.00012932,2]
[346787342,1735287047623,-773.84,0.00012932,2]
[346787344,1735287047633,-500.0,0.00012932,2]
[346787346,1735287047643,-500.0,0.00012932,2]
[346787348,1735287047653,-818.72,0.00012932,2]
[346787350,1735287047663,-500.0,0.00012932,2]
[346787351,1735287047673,-690.94,0.00012932,2]
[346787352,1735287047683,-1002.79,0.00012932,2]
[346787353,1735287047693,-500.0,0.00012932,2]
[346787354,1735287047703,-500.0,0.00012932,2]
[346787355,1735287047713,-697.58,0.00012932,2]
[346787356,1735287047723,-500.0,0.00012932,2]
[346787357,1735287047732,-956.09,0.00012932,2]
[346787358,1735287047741,-500.0,0.00012932,2]
[346787359,1735287047750,-500.0,0.00012932,2]
[346787360,1735287047760,-575.51,0.00012932,2]
[346787361,1735287047769,-526.52,0.00012932,2]
[346787362,1735287047779,-500.0,0.00012932,2]
[346787363,1735287047789,-988.32,0.00012932,2]
[346787364,1735287047798,-500.0,0.00012932,2]
[346787365,1735287047808,-4072.12,0.00012932,2]
[346787366,1735287047818,-1020.26,0.00012932,2]
[346787367,1735287047828,-500.0,0.00012932,2]
[346787368,1735287047840,-500.0,0.00012932,2]
[346787369,1735287047849,-653.33,0.00012932,2]
[346787370,1735287047859,-784.5,0.00012932,2]
[346787371,1735287047869,-1070.25,0.00012932,2]
[346787372,1735287047879,-1109.88,0.00012932,2]
[346787373,1735287047888,-500.0,0.00012932,2]
[346787374,1735287047898,-1211.49,0.00012932,2]
[346787375,1735287047908,-725.53,0.00012932,2]
[346787376,1735287047918,-2566.77,0.00012932,2]
[346787377,1735287047926,-500.0,0.00012932,2]
[346787378,1735287047933,-500.0,0.00012932,2]
[346787379,1735287047941,-500.0,0.00012932,2]
[346787380,1735287047950,-500.0,0.00012932,2]
[346787381,1735287047957,-500.0,0.00012932,2]
[346787382,1735287047966,-719.6,0.00012932,2]
[346787383,1735287047976,-500.0,0.00012932,2]
[346787384,1735287047986,-500.0,0.00012932,2]
[346787385,1735287047997,-500.0,0.00012932,2]
[346787386,1735287048007,-547.42,0.00012932,2]
[346787387,1735287048017,-4182.67,0.00012932,2]
[346787388,1735287048027,-540.93,0.00012932,2]
[346787389,1735287048037,-500.0,0.00012932,2]
[346787390,1735287048047,-1218.76,0.00012932,2]
[346787391,1735287048057,-500.0,0.00012932,2]
[346787392,1735287048068,-1379.95,0.00012932,2]
[346787393,1735287048078,-500.0,0.00012932,2]
[346787394,1735287048092,-685.67,0.00012932,2]
[346787395,1735287048103,-500.0,0.00012932,2]
[346787396,1735287048113,-500.0,0.00012932,2]
[346787397,1735287048124,-500.0,0.00012932,2]
[346787398,1735287048136,-758.05,0.00012932,2]
[346787399,1735287048147,-500.0,0.00012932,2]
[346787400,1735287048157,-4296.47,0.00012932,2]
[346787401,1735287048168,-589.07,0.00012932,2]
[346787402,1735287048179,-618.01,0.00012932,2]
[346787403,1735287048190,-189.37,0.00012932,2]
[346787404,1735287048203,-500.0,0.00012932,2]
[346787405,1735287048214,-656.41,0.00012932,2]
[346787406,1735287048225,-877.28,0.00012932,2]
[346787407,1735287048235,-500.0,0.00012932,2]
[346787408,1735287048246,-500.0,0.00012932,2]
[346787409,1735287048257,-920.81,0.00012932,2]
[346787410,1735287048269,-500.0,0.00012932,2]
[346787411,1735287048280,-3057.02,0.00012932,2]
[346787412,1735287048292,-151.0,0.00012932,2]
[346787413,1735287048303,-514.25,0.00012932,2]
[346787414,1735287048314,-707.98,0.00012932,2]
[346787415,1735287048325,-500.0,0.00012932,2]
[346787416,1735287048339,-1025.55,0.00012932,2]
[346787417,1735287048349,-500.0,0.00012932,2]
[346787418,1735287048360,-280.81268303,0.00012932,2]
[346787419,1735287048371,-725.08,0.00012932,2]
[346787420,1735287048381,-151.0,0.00012932,2]
[346787421,1735287048391,-500.0,0.00012932,2]
[346787422,1735287048402,-500.0,0.00012932,2]
[346787423,1735287048412,-500.0,0.00012932,2]
[346787424,1735287048423,-500.0,0.00012932,2]
[346787425,1735287048435,-500.0,0.00012932,2]
[346787426,1735287048446,-697.77,0.00012932,2]
[346787427,1735287048459,-7730.36,0.00012932,2]
[346787428,1735287048470,-151.0,0.00012932,2]
[346787429,1735287048481,-617.01,0.00012932,2]
[346787430,1735287048492,-500.0,0.00012932,2]
[346787431,1735287048502,-500.0,0.00012932,2]
[346787432,1735287048514,-581.69,0.00012932,2]
[346787433,1735287048524,-500.0,0.00012932,2]
[346787434,1735287048535,-632.35,0.00012932,2]
[346787435,1735287048546,-4451.07,0.00012932,2]
[346787436,1735287048557,-500.0,0.00012932,2]
[346787437,1735287048568,-713.06,0.00012932,2]
[346787438,1735287048579,-500.0,0.00012932,2]
[346787439,1735287048591,-236.437203,0.00012932,2]
[346787440,1735287048601,-494.64,0.00012932,2]
[346787441,1735287048612,-500.0,0.00012932,2]
[346787442,1735287048622,-236.437203,0.00012932,2]
[346787443,1735287048633,-272.27,0.00012932,2]
[346787444,1735287048643,-500.0,0.00012932,2]
[346787445,1735287048654,-500.0,0.00012932,2]
[346787446,1735287048664,-500.0,0.00012932,2]
[346787447,1735287048675,-1350.48,0.00012932,2]
[346787448,1735287048686,-11922.38,0.00012932,2]
[346787449,1735287048696,-536.36,0.00012932,2]
[346787450,1735287048706,-766.37,0.00012932,2]
[346787451,1735287048717,-469.68966895,0.00012932,2]
[346787452,1735287048727,-500.0,0.00012932,2]
[346787453,1735287048737,-500.0,0.00012932,2]
[346787454,1735287048747,-500.0,0.00012932,2]
[346787455,1735287048757,-151.0,0.00012933,2]
[346787456,1735287048767,-151.0,0.00012933,2]
[346787457,1735287048778,-151.0,0.00012933,2]
[346787458,1735287049034,-749.93,0.00012933,2]
[346787459,1735287049058,-706.71,0.00012933,2]
[346787460,1735287049069,-500.0,0.00012933,2]
[346787461,1735287049080,-500.0,0.00012933,2]
[346787462,1735287049092,-1068.17,0.00012933,2]
[346787463,1735287049102,-500.0,0.00012933,2]
[346787464,1735287049112,-589.35,0.00012933,2]
[346787465,1735287049122,-699.22,0.00012933,2]
[346787466,1735287049131,-1182.58,0.00012933,2]
[346787467,1735287049141,-793.32,0.00012933,2]
[346787468,1735287049151,-702.33,0.00012933,2]
[346787469,1735287049161,-780.93,0.00012933,2]
[346787470,1735287049171,-500.0,0.00012933,2]
[346787471,1735287049181,-1191.15,0.00012933,2]
[346787472,1735287049195,-921.0,0.00012933,2]
[346787473,1735287049205,-1018.93,0.00012933,2]
[346787474,1735287049216,-953.25,0.00012933,2]
[346787475,1735287049227,-500.0,0.00012933,2]
[346787476,1735287049237,-1387.13,0.00012933,2]
[346787477,1735287049247,-500.0,0.00012933,2]
[346787478,1735287049257,-302.04,0.00012933,2]
[346787479,1735287049268,-1450.39,0.00012933,2]
[346787480,1735287049279,-609.63,0.00012933,2]
[346787481,1735287049289,-500.0,0.00012933,2]
[346787482,1735287049299,-500.0,0.00012933,2]
[346787483,1735287049309,-500.0,0.00012933,2]
[346787484,1735287049319,-1185.65,0.00012933,2]
[346787485,1735287049329,-789.86,0.00012933,2]
[346787486,1735287049342,-500.0,0.00012933,2]
[346787487,1735287049353,-1045.11,0.00012933,2]
[346787488,1735287049363,-2261.45,0.00012933,2]
[346787489,1735287049373,-538.76,0.00012933,2]
[346787490,1735287049384,-500.0,0.00012933,2]
[346787491,1735287049395,-1118.41,0.00012933,2]
[346787492,1735287049405,-2418.29,0.00012933,2]
[346787493,1735287049415,-684.22,0.00012933,2]
[346787494,1735287049425,-1206.75,0.00012933,2]
[346787495,1735287049436,-500.0,0.00012933,2]
[346787496,1735287049445,-1741.13,0.00012933,2]
[346787497,1735287049455,-758.75,0.00012933,2]
[346787498,1735287049467,-952.77,0.00012933,2]
[346787499,1735287049477,-844.36,0.00012933,2]
[346787500,1735287049487,-500.0,0.00012933,2]
[346787501,1735287049497,-4103.45,0.00012933,2]
[346787502,1735287049507,-931.04,0.00012933,2]
[346787503,1735287049518,-1299.25,0.00012933,2]
[346787504,1735287049528,-500.0,0.00012933,2]
[346787505,1735287049538,-500.0,0.00012933,2]
[346787506,1735287049548,-668.51,0.00012933,2]
[346787507,1735287049558,-500.0,0.00012933,2]
[346787508,1735287049568,-3687.75,0.00012933,2]
[346787509,1735287049578,-6848.66,0.00012933,2]
[346787510,1735287049589,-152.44,0.00012934,2]
[346787511,1735287049599,-151.0,0.00012934,2]
[346787512,1735287049610,-500.0,0.00012934,2]
[346787513,1735287049620,-505.28781327,0.00012934,2]
[346787514,1735287049630,-500.0,0.00012934,2]
[346787515,1735287049640,-645.06,0.00012934,2]
[346787516,1735287049649,-500.0,0.00012934,2]
[346787517,1735287049660,-500.0,0.00012934,2]
[346787518,1735287049669,-500.0,0.00012934,2]
[346787519,1735287049679,-678.11,0.00012934,2]
[346787520,1735287049689,-3424.91,0.00012934,2]
[346787521,1735287049698,-12981.12,0.00012934,2]
[346787522,1735287049708,-3852.16,0.00012934,2]
[346787523,1735287049718,-5969.91,0.00012934,2]
[346787524,1735287049727,-4034.57,0.00012934,2]
[346787525,1735287049738,-2919.18,0.00012934,2]
[346787526,1735287049747,-509.57,0.00012934,2]
[346787527,1735287049758,-2435.94,0.00012934,2]
[346787528,1735287049767,-6301.43,0.00012934,2]
[346787529,1735287049777,-555.83,0.00012934,2]
[346787530,1735287049786,-1350.65,0.00012934,2]
[346787531,1735287049796,-500.0,0.00012935,2]
[346787532,1735287049806,-753.4,0.00012935,2]
[346787533,1735287049816,-1919.88,0.00012935,2]
[346787534,1735287049825,-1272.59,0.00012935,2]
[346787535,1735287049834,-153.232253,0.00012936,2]
[346787536,1735287049845,-1779.23,0.00012936,2]
[346787537,1735287049855,-2808.02,0.00012936,2]
[346787538,1735287049864,-4058.3,0.00012936,2]
[346787539,1735287049874,-14959.19,0.00012936,2]
[346787540,1735287049883,-1476.4,0.00012936,2]
[346787541,1735287049893,-1029.02,0.00012936,2]
[346787542,1735287049903,-781.71,0.00012936,2]
[346787543,1735287049913,-1969.76,0.00012936,2]
[346787544,1735287049923,-11548.02,0.00012936,2]
[346787545,1735287049933,-500.0,0.00012936,2]
[346787546,1735287049942,-1622.22,0.00012936,2]
[346787547,1735287049952,-1261.46,0.00012936,2]
[346787548,1735287049961,-1175.1,0.00012936,2]
[346787549,1735287049971,-3030.36,0.00012936,2]
[346787550,1735287049981,-500.0,0.00012936,2]
[346787551,1735287049990,-1000.0,0.00012936,2]
[346787552,1735287049999,-971.91,0.00012936,2]
[346787553,1735287050009,-600.79,0.00012936,2]
[346787554,1735287050019,-1586.79,0.00012936,2]
[346787555,1735287050029,-151.0,0.00012936,2]
[346787556,1735287050039,-226.850775,0.00012936,2]
[346787557,1735287050049,-1564.88,0.00012936,2]
[346787558,1735287050059,-151.0,0.00012936,2]
[346787559,1735287050068,-151.0,0.00012936,2]
[346787560,1735287050078,-151.0,0.00012936,2]
[346787561,1735287050089,-151.0,0.00012936,2]
[346787562,1735287050099,-1000.0,0.00012943,2]
[346787563,1735287050108,-150.0,0.0001296,2]
[346787564,1735287050118,-150.0,0.0001296,2]
[346787565,1735287050127,-500.87996946,0.00012973,2]
[346787566,1735287050137,-501.09925535,0.00012973,2]
[346787567,1735287050147,-161.77977097,0.00012986,2]
[346787568,1735287050156,-239.74871387,0.00012986,2]
[346787569,1735287050165,-172.84053904,0.00012986,2]
[346787570,1735287050175,-150.65316012,0.00012986,2]
[346787571,1735287050185,-182938.04834778,0.0001299,2]
[346787572,1735287050195,-151.0,0.0001299,2]
[346787573,1735287050209,-151.0,0.0001299,2]
[346787574,1735287050218,-262.550694,0.0001299,2]
[346787575,1735287050228,-236.437203,0.0001299,2]
[346787576,1735287050238,-236.437203,0.0001299,2]
[346787577,1735287050249,-151.0,0.0001299,2]
[346787578,1735287050259,-1404.3559372,0.00012995,2]
[346787579,1735287050269,-181.34447877,0.00012996,2]
[346787580,1735287050279,-388149.22747644,0.00012997,2]
[346787581,1735287050290,-500.0,0.00012999,2]
[346787582,1735287050299,-357205.28459932,0.00013,2]
[346787583,1735287050709,-2835.104616,0.00013,2]
[346787584,1735287050736,-649.84901329,0.00013,2]
[346787585,1735287050747,-544.34473846,0.00013,2]
[346787586,1735287051476,-422.28840454,0.00012657,2]
[346787587,1735287051486,-535.08251546,0.00013,2]
[346787588,1735287051497,-11487.25847605,0.00013,2]
[346787589,1735287051523,-500.0,0.00012657,2]
[346787590,1735287051532,-1938.03329522,0.00013,2]
[346787591,1735287051558,-500.0,0.00012657,2]
[346787592,1735287051568,-9058.1,0.00013,2]
[346787593,1735287051602,-3948.605571,0.00013,2]
[346787594,1735287051614,-57374.47298473,0.00013,2]
[346787595,1735287051624,-6882.31330475,0.00013,2]
[346787596,1735287051633,-24758.44804888,0.00013,2]
[346787597,1735287052376,-150.71,0.00011731,2]
[346787598,1735287052386,-500.0,0.00011999,2]
[346787599,1735287052395,-528.15131532,0.00012273,2]
[346787600,1735287052404,-157.42019372,0.00012562,2]
[346787601,1735287052413,-153.897089,0.00012656,2]
[346787602,1735287052423,-500.0,0.00012657,2]
[346787603,1735287052432,-500.0,0.00012657,2]
[346787604,1735287052443,-500.0,0.00012658,2]
[346787605,1735287052452,-509.61640796,0.00012658,2]
[346787606,1735287052462,-647.82,0.00012658,2]
[346787607,1735287052471,-500.0,0.00012658,2]
[346787608,1735287052480,-150.0,0.00012814,2]
[346787609,1735287052489,-150.0,0.00012864,2]
[346787610,1735287052499,-152.31396339,0.00012879,2]
[346787611,1735287052508,-150.0,0.00012895,2]
[346787612,1735287052518,-500.0,0.00012931,2]
[346787613,1735287052527,-647.82,0.00012932,2]
[346787614,1735287052536,-1501.28,0.00012934,2]
[346787615,1735287052545,-150.0,0.00012936,2]
[346787616,1735287052555,-150.0,0.00012954,2]
[346787617,1735287052564,-81271.57038558,0.00013,2]
[346787618,1735287052598,-370.04182532,0.00011999,2]
[346787619,1735287062370,-129.95817468,0.00011999,2]
[346787620,1735287062380,-88571.7633076,0.00013,2]
[346787621,1735287062392,-19122.0,0.00013,2]
[346787622,1735287062410,-53821.90895195,0.00013,2]
[346787624,1735287210763,150.0,0.00018838,120]
[346787627,1735287330715,150.0,0.00019625,120]
[346787634,1735288077295,-150.74,0.00016658,30]
[346787635,1735288077412,-2500.0,0.00018,30]
[346787636,1735288077468,-1918.01,0.000184,31]
[346787637,1735288077493,-1918.01,0.000184,31]
[346787638,1735288077519,-1918.01,0.000184,31]
[346787639,1735288077543,-1595.23,0.000184,31]
[346787680,1735288232413,-644.16,9.13e-05,2]
[346787682,1735288232423,-861.14214773,9.8e-05,2]
[346787683,1735288232432,-157.96,0.00010137,2]
[346787684,1735288232441,-198.89,0.0001101,2]
[346787685,1735288232450,-1000.0,0.00011037,2]
[346787686,1735288232460,-400.0,0.00011075,2]
[346787687,1735288232470,-150.0,0.00011207,2]
[346787688,1735288232479,-4451.84653597,0.00011322,2]
[346787689,1735288232490,-2992.548,0.00011322,2]
[346787690,1735288232513,-320.6944507,0.00011322,2]
[346787691,1735288232537,-289.67996658,0.00011322,2]
[346787692,1735288232548,-15845.23104675,0.00011322,2]
[346787693,1735288232557,-644.16,0.00011394,2]
[346787694,1735288232567,-568.85,0.00011399,2]
[346787695,1735288232577,-250.0,0.00011487,2]
[346787696,1735288232586,-163.53,0.00011543,2]
[346787697,1735288232595,-150.0,0.00011614,2]
[346787698,1735288232605,-176.34758047,0.00011674,2]
[346787699,1735288232616,-87.33241953,0.00011674,2]
[346787700,1735288232625,-250.0,0.00011674,2]
[346787701,1735288232635,-471.04,0.00011716,2]
[346787702,1735288232644,-47.67015115,0.00011758,2]
[346787703,1735288232656,-202.32984885,0.00011758,2]
[346787704,1735288232665,-1489.43150715,0.00011789,2]
[346787705,1735288232717,-1023.56849285,0.00011789,2]
[346787706,1735288232727,-150.93,0.00011899,2]
[346787707,1735288232737,-151.4,0.00011899,2]
[346787708,1735288232745,-150.29,0.00011899,2]
[346787709,1735288232755,-150.99,0.00011899,2]
[346787710,1735288232764,-265.2099,0.00011899,2]
[346787711,1735288232773,-3862.3307,0.00011899,2]
[346787712,1735288232783,-855.4534,0.00011899,2]
[346787713,1735288232792,-615.10833277,0.00011899,2]
[346787714,1735288232801,-151.46,0.000119,2]
[346787715,1735288232810,-1000.0,0.000119,2]
[346787716,1735288232821,-150.51,0.000119,2]
[346787717,1735288232830,-54.03174354,0.000119,2]
[346787718,1735288232917,-97.42825646,0.000119,2]
[346787719,1735288232927,-380.1886,0.000119,2]
[346787720,1735288232936,-233.85814359,0.00011999,2]
[346787721,1735288232947,-1198.4,0.00011999,2]
[346787722,1735288232958,-929.64434,0.00011999,2]
[346787723,1735288232973,-708.7217319,0.00011999,2]
[346787732,1735288238285,-1072.491,0.00011999,2]
[346787734,1735288238344,-5016.6915,0.00011999,2]
[346787735,1735288238355,-2006.23632047,0.00011999,2]
[346787736,1735288238366,-4987.94296,0.00011999,2]
[346787737,1735288238378,-1059.15400404,0.00011999,2]
[346787738,1735288238388,-417.89599596,0.00011999,2]
[346787739,1735288238417,-2590.41667305,0.00011999,2]
[346787740,1735288238428,-345.12733099,0.00011999,2]
[346787741,1735288238437,-3833.40462288,0.00011999,2]
[346787742,1735288238466,-686.12537712,0.00011999,2]
[346787743,1735288238476,-1363.54,0.00011999,2]
[346787744,1735288238485,-2450.75,0.00011999,2]
[346787745,1735288238495,-954.17,0.00011999,2]
[346787746,1735288238504,-640.63,0.00011999,2]
[346787747,1735288238513,-4365.36,0.00011999,2]
[346787748,1735288238523,-681.44,0.00011999,2]
[346787749,1735288238532,-875.86,0.00011999,2]
[346787750,1735288238542,-639.03,0.00011999,2]
[346787751,1735288238551,-500.0,0.00011999,2]
[346787752,1735288238560,-505.11575725,0.00011999,2]
[346787753,1735288238570,-507.30528926,0.00011999,2]
[346787754,1735288238582,-653.67901261,0.00011999,2]
[346787771,1735288240671,-79.01569813,0.00011999,2]
[346787772,1735288240681,-634.09,0.00011999,2]
[346787773,1735288240691,-876.26,0.00011999,2]
[346787774,1735288240702,-899.23566706,0.00011999,2]
[346787775,1735288240714,-91.86433294,0.00011999,2]
[346787776,1735288240724,-281.69733725,0.00011999,2]
[346787777,1735288240737,-218.30266275,0.00011999,2]
[346787778,1735288240747,-585.69,0.00011999,2]
[346787779,1735288240758,-500.0,0.00011999,2]
[346787780,1735288240768,-1018.6,0.00011999,2]
[346787781,1735288240778,-664.7,0.00011999,2]